[Event "NJSK 2023 Jeugd C"]
[Site "Almelo, Netherlands"]
[Date "2023.05.03"]
[Round "5.9"]
[White "Vijver, Jonathan"]
[Black "Ten Kate, Gustav"]
[Result "1/2-1/2"]
[TimeControl "90min/40moves + 30min + 30sec/move"]
[WhiteElo "1781"]
[BlackElo "1815"]

1. e4 {[%clk 01:30:54]} {[%emt 00:00:05]} c6 {[%clk 01:30:30]} {[%emt
00:00:29]} 2. d4 {[%clk 01:30:22]} {[%emt 00:01:02]} d5 {[%clk 01:30:55]}
{[%emt 00:00:06]} 3. Nc3 {[%clk 01:30:47]} {[%emt 00:00:05]} dxe4 {[%clk
01:31:19]} {[%emt 00:00:06]} 4. Nxe4 {[%clk 01:31:14]} {[%emt 00:00:04]} Nf6
{[%clk 01:31:43]} {[%emt 00:00:06]} 5. Nxf6+ {[%clk 01:31:40]} {[%emt
00:00:04]} exf6 {[%clk 01:32:06]} {[%emt 00:00:06]} 6. Nf3 {[%clk 01:31:58]}
{[%emt 00:00:12]} Bd6 {[%clk 01:32:30]} {[%emt 00:00:07]} 7. Be2 {[%clk
01:32:11]} {[%emt 00:00:16]} Nd7 {[%clk 01:30:47]} {[%emt 00:02:13]} 8. O-O
{[%clk 01:31:47]} {[%emt 00:00:54]} O-O {[%clk 01:31:14]} {[%emt 00:00:04]} 9.
c4 {[%clk 01:31:39]} {[%emt 00:00:37]} Re8 {[%clk 01:31:06]} {[%emt 00:00:38]}
10. Be3 {[%clk 01:31:58]} {[%emt 00:00:12]} Nf8 {[%clk 01:30:57]} {[%emt
00:00:39]} 11. Qd2 {[%clk 01:27:12]} {[%emt 00:05:16]} Ng6 {[%clk 01:31:03]}
{[%emt 00:00:25]} 12. Rac1 {[%clk 01:25:02]} {[%emt 00:02:40]} a5 {[%clk
01:27:01]} {[%emt 00:04:32]} 13. Rfd1 {[%clk 01:21:56]} {[%emt 00:03:35]} Bf5
{[%clk 01:22:55]} {[%emt 00:04:35]} 14. a3 {[%clk 01:19:57]} {[%emt 00:02:30]}
a4 {[%clk 01:18:47]} {[%emt 00:04:39]} 15. h3 {[%clk 00:58:22]} {[%emt
00:22:05]} Qb8 {[%clk 01:04:00]} {[%emt 00:15:16]} 16. Bf1 {[%clk 00:42:42]}
{[%emt 00:16:10]} Bf4 {[%clk 00:48:05]} {[%emt 00:16:25]} 17. Re1 {[%clk
00:38:57]} {[%emt 00:04:15]} Bxe3 {[%clk 00:31:14]} {[%emt 00:17:22]} 18. Rxe3
{[%clk 00:36:37]} {[%emt 00:02:49]} Rxe3 {[%clk 00:29:16]} {[%emt 00:02:29]} 19.
fxe3 {[%clk 00:35:23]} {[%emt 00:01:44]} Be4 {[%clk 00:24:41]} {[%emt
00:05:05]} 20. Qf2 {[%clk 00:31:54]} {[%emt 00:03:58]} Ra5 {[%clk 00:19:09]}
{[%emt 00:06:02]} 21. c5 {[%clk 00:30:08]} {[%emt 00:02:16]} Ra8 {[%clk
00:19:12]} {[%emt 00:00:28]} 22. Nd2 {[%clk 00:30:23]} {[%emt 00:00:14]} Bd5
{[%clk 00:18:11]} {[%emt 00:01:32]} 23. Nc4 {[%clk 00:28:34]} {[%emt 00:02:19]}
Bxc4 {[%clk 00:18:11]} {[%emt 00:00:30]} 24. Bxc4 {[%clk 00:28:19]} {[%emt
00:00:44]} b5 {[%clk 00:16:31]} {[%emt 00:02:10]} 25. Bd3 {[%clk 00:27:15]}
{[%emt 00:01:33]} Ne7 {[%clk 00:05:53]} {[%emt 00:11:09]} 26. Qf3 {[%clk
00:26:43]} {[%emt 00:01:02]} Qc8 {[%clk 00:05:09]} {[%emt 00:01:14]} 27. Qe4
{[%clk 00:23:37]} {[%emt 00:03:36]} Qe6 {[%clk 00:04:17]} {[%emt 00:01:22]} 28.
Qf3 {[%clk 00:14:34]} {[%emt 00:09:33]} Qb3 {[%clk 00:04:03]} {[%emt 00:00:44]}
29. Qe4 {[%clk 00:07:28]} {[%emt 00:07:36]} g6 {[%clk 00:03:02]} {[%emt
00:01:31]} 30. Rb1 {[%clk 00:05:31]} {[%emt 00:02:26]} Nd5 {[%clk 00:01:04]}
{[%emt 00:02:29]} 31. Bc2 {[%clk 00:05:07]} {[%emt 00:00:54]} Qxe3+ {[%clk
00:01:25]} {[%emt 00:00:08]} 32. Qxe3 {[%clk 00:05:35]} {[%emt 00:00:03]} Nxe3
{[%clk 00:01:55]} 33. Be4 {[%clk 00:05:58]} {[%emt 00:00:07]} Rc8 {[%clk
00:01:48]} {[%emt 00:00:37]} 34. Kf2 {[%clk 00:05:57]} {[%emt 00:00:31]} Nc4
{[%clk 00:02:06]} {[%emt 00:00:11]} 35. Bd3 {[%clk 00:06:12]} {[%emt 00:00:16]}
Nd2 {[%clk 00:02:09]} {[%emt 00:00:28]} 36. Rd1 {[%clk 00:06:34]} {[%emt
00:00:07]} Nb3 {[%clk 00:02:35]} {[%emt 00:00:05]} 37. Bc2 {[%clk 00:06:38]}
{[%emt 00:00:26]} Rd8 {[%clk 00:01:55]} {[%emt 00:01:08]} 38. Bxb3 {[%clk
00:06:24]} {[%emt 00:00:46]} axb3 {[%clk 00:02:21]} {[%emt 00:00:04]} 39. Ke3
{[%clk 00:06:45]} {[%emt 00:00:08]} Rd5 {[%clk 00:02:10]} {[%emt 00:00:40]} 40.
Kd3 {[%clk 00:06:03]} {[%emt 00:01:13]} Rg5 {[%clk 00:02:02]} {[%emt 00:00:38]}
41. Rd2 {[%clk 00:06:24]} {[%emt 00:00:09]} Rg3+ {[%clk 00:02:24]} {[%emt
00:00:08]} 42. Ke4 {[%clk 00:06:42]} {[%emt 00:00:10]} Rg5 {[%clk 00:01:03]}
{[%emt 00:01:51]} 43. Re2 {[%clk 00:03:35]} {[%emt 00:03:38]} Kf8 {[%clk
00:01:08]} {[%emt 00:00:25]} 44. Kd3 {[%clk 00:02:50]} {[%emt 00:01:16]} Rg3+
{[%clk 00:01:13]} {[%emt 00:00:25]} 45. Ke4 {[%clk 00:03:00]} {[%emt 00:00:20]}
Rg5 {[%clk 00:01:24]} {[%emt 00:00:19]} 46. Kd3 {[%clk 00:03:27]} {[%emt
00:00:03]} 1/2-1/2

[Event "NJSK 2023 Jeugd C"]
[Site "Almelo, Netherlands"]
[Date "2023.05.03"]
[Round "5.10"]
[White "Roorda, Cas"]
[Black "Ambrona Navarro, Himar"]
[Result "0-1"]
[TimeControl "90min/40moves + 30min + 30sec/move"]
[WhiteElo "1769"]
[BlackElo "1834"]

1. e4 {[%clk 01:30:58]} {[%emt 00:00:02]} c6 {[%clk 01:30:45]} {[%emt
00:00:11]} 2. d4 {[%clk 01:31:27]} {[%emt 00:00:06]} d5 {[%clk 01:31:08]}
{[%emt 00:00:07]} 3. e5 {[%clk 01:31:53]} {[%emt 00:00:03]} c5 {[%clk
01:31:25]} {[%emt 00:00:12]} 4. Nf3 {[%clk 01:32:19]} {[%emt 00:00:03]} Nc6
{[%clk 01:31:25]} {[%emt 00:00:30]} 5. dxc5 {[%clk 01:32:47]} {[%emt 00:00:03]}
Bg4 {[%clk 01:30:27]} {[%emt 00:01:27]} 6. c3 {[%clk 01:33:13]} {[%emt
00:00:04]} e6 {[%clk 01:30:17]} {[%emt 00:00:39]} 7. Be3 {[%clk 01:33:38]}
{[%emt 00:00:06]} Bxf3 {[%clk 01:28:54]} {[%emt 00:01:52]} 8. Qxf3 {[%clk
01:33:55]} {[%emt 00:00:14]} Nxe5 {[%clk 01:28:15]} {[%emt 00:01:08]} 9. Bb5+
{[%clk 01:34:24]} {[%emt 00:00:04]} Nc6 {[%clk 01:28:20]} {[%emt 00:00:24]} 10.
O-O {[%clk 01:34:49]} {[%emt 00:00:05]} Nf6 {[%clk 01:28:08]} {[%emt 00:00:40]}
11. c4 {[%clk 01:35:05]} {[%emt 00:00:16]} Be7 {[%clk 01:24:56]} {[%emt
00:03:41]} 12. Nc3 {[%clk 01:34:19]} {[%emt 00:01:18]} O-O {[%clk 01:24:23]}
{[%emt 00:01:02]} 13. Rfd1 {[%clk 01:33:30]} {[%emt 00:01:20]} a6 {[%clk
01:24:08]} {[%emt 00:00:45]} 14. cxd5 {[%clk 01:27:02]} {[%emt 00:06:58]} exd5
{[%clk 01:22:48]} {[%emt 00:01:49]} 15. Nxd5 {[%clk 01:22:27]} {[%emt
00:05:07]} Ne5 {[%clk 01:20:01]} {[%emt 00:03:15]} 16. Qg3 {[%clk 01:15:12]}
{[%emt 00:07:45]} Nxd5 {[%clk 01:14:51]} {[%emt 00:05:39]} 17. Qxe5 {[%clk
01:15:20]} {[%emt 00:00:23]} Bf6 {[%clk 01:15:02]} {[%emt 00:00:18]} 18. Qe4
{[%clk 00:59:35]} {[%emt 00:16:16]} axb5 {[%clk 01:02:47]} {[%emt 00:12:45]} 19.
Rxd5 {[%clk 00:59:37]} {[%emt 00:00:29]} Qa5 {[%clk 00:58:33]} {[%emt
00:04:43]} 20. Rd2 {[%clk 00:56:49]} {[%emt 00:03:19]} Rae8 {[%clk 00:56:21]}
{[%emt 00:02:39]} 21. Qc2 {[%clk 00:51:53]} {[%emt 00:05:29]} Re7 {[%clk
00:47:45]} {[%emt 00:09:05]} 22. h3 {[%clk 00:43:54]} {[%emt 00:08:30]} Rfe8
{[%clk 00:44:23]} {[%emt 00:03:50]} 23. a3 {[%clk 00:41:32]} {[%emt 00:02:54]}
Qc7 {[%clk 00:42:12]} {[%emt 00:02:40]} 24. g3 {[%clk 00:38:49]} {[%emt
00:03:15]} Be5 {[%clk 00:39:13]} {[%emt 00:03:27]} 25. Qb3 {[%clk 00:29:05]}
{[%emt 00:10:16]} Bxg3 {[%clk 00:27:51]} {[%emt 00:11:51]} 26. Qxb5 {[%clk
00:29:23]} {[%emt 00:00:13]} Bf4 {[%clk 00:23:20]} {[%emt 00:05:01]} 27. Bxf4
{[%clk 00:20:37]} {[%emt 00:09:16]} Qxf4 {[%clk 00:23:41]} {[%emt 00:00:08]} 28.
Qb4 {[%clk 00:20:06]} {[%emt 00:01:02]} Qf3 {[%clk 00:22:22]} {[%emt 00:01:46]}
29. Rd4 {[%clk 00:18:06]} {[%emt 00:02:32]} Re6 {[%clk 00:12:26]} {[%emt
00:10:26]} 30. Qc3 {[%clk 00:16:34]} {[%emt 00:02:02]} Rg6+ {[%clk 00:08:18]}
{[%emt 00:04:36]} 31. Rg4 {[%clk 00:17:02]} {[%emt 00:00:04]} Rxg4+ {[%clk
00:08:29]} {[%emt 00:00:18]} 32. hxg4 {[%clk 00:17:28]} {[%emt 00:00:04]} Qxg4+
{[%clk 00:08:38]} {[%emt 00:00:21]} 33. Qg3 {[%clk 00:17:09]} {[%emt 00:00:49]}
Qd4 {[%clk 00:07:50]} {[%emt 00:01:15]} 34. Qc3 {[%clk 00:13:39]} {[%emt
00:04:03]} Qxc3 {[%clk 00:07:15]} {[%emt 00:01:05]} 35. bxc3 {[%clk 00:14:07]}
{[%emt 00:00:02]} h5 {[%clk 00:07:23]} {[%emt 00:00:21]} 36. Rb1 {[%clk
00:14:21]} {[%emt 00:00:17]} Rc8 {[%clk 00:07:27]} {[%emt 00:00:25]} 37. Rb5
{[%clk 00:14:06]} {[%emt 00:00:47]} Ra8 {[%clk 00:06:43]} {[%emt 00:01:13]} 38.
Rb3 {[%clk 00:10:22]} {[%emt 00:04:15]} Ra5 {[%clk 00:06:24]} {[%emt 00:00:47]}
39. Rxb7 {[%clk 00:10:47]} {[%emt 00:00:06]} Rxa3 {[%clk 00:06:27]} {[%emt
00:00:27]} 40. c6 {[%clk 00:10:45]} {[%emt 00:00:33]} Rxc3 {[%clk 00:06:38]}
{[%emt 00:00:18]} 41. c7 {[%clk 00:11:07]} {[%emt 00:00:09]} Kh7 {[%clk
00:06:59]} {[%emt 00:00:06]} 42. c8=Q {[%clk 00:10:55]} {[%emt 00:00:44]} Rxc8
{[%clk 00:07:16]} {[%emt 00:00:13]} 43. Rxf7 {[%clk 00:11:22]} {[%emt
00:00:03]} Kg6 {[%clk 00:07:07]} {[%emt 00:00:37]} 44. Rb7 {[%clk 00:11:35]}
{[%emt 00:00:18]} Rc6 {[%clk 00:07:25]} {[%emt 00:00:11]} 45. Rb5 {[%clk
00:11:52]} {[%emt 00:00:14]} Kh6 {[%clk 00:07:28]} {[%emt 00:00:27]} 46. Kg2
{[%clk 00:12:02]} {[%emt 00:00:21]} Rg6+ {[%clk 00:07:20]} {[%emt 00:00:36]} 47.
Kh3 {[%clk 00:12:11]} {[%emt 00:00:20]} Rg5 {[%clk 00:06:24]} {[%emt 00:01:27]}
48. Rb6+ {[%clk 00:12:34]} {[%emt 00:00:08]} g6 {[%clk 00:06:34]} {[%emt
00:00:18]} 49. Rb7 {[%clk 00:12:25]} {[%emt 00:00:39]} Rf5 {[%clk 00:06:40]}
{[%emt 00:00:23]} 50. Kg3 {[%clk 00:12:33]} {[%emt 00:00:23]} g5 {[%clk
00:06:53]} {[%emt 00:00:18]} 51. Rb6+ {[%clk 00:12:58]} {[%emt 00:00:06]} Kg7
{[%clk 00:07:15]} {[%emt 00:00:06]} 52. f3 {[%clk 00:13:11]} {[%emt 00:00:18]}
Rf6 {[%clk 00:07:35]} {[%emt 00:00:10]} 53. Rb5 {[%clk 00:10:18]} {[%emt
00:03:24]} Kg6 {[%clk 00:07:55]} {[%emt 00:00:09]} 54. Rb8 {[%clk 00:10:24]}
{[%emt 00:00:24]} h4+ {[%clk 00:08:02]} {[%emt 00:00:22]} 55. Kg2 {[%clk
00:10:34]} {[%emt 00:00:21]} Ra6 {[%clk 00:07:29]} {[%emt 00:01:02]} 56. Rg8+
{[%clk 00:10:10]} {[%emt 00:00:56]} Kh6 {[%clk 00:07:51]} {[%emt 00:00:07]} 57.
Kh3 {[%clk 00:10:18]} {[%emt 00:00:23]} Rf6 {[%clk 00:07:36]} {[%emt 00:00:44]}
58. Kg2 {[%clk 00:10:28]} {[%emt 00:00:22]} Rf4 {[%clk 00:06:59]} {[%emt
00:01:06]} 59. Rb8 {[%clk 00:09:47]} {[%emt 00:01:12]} Ra4 {[%clk 00:06:34]}
{[%emt 00:00:53]} 60. Rb6+ {[%clk 00:09:50]} {[%emt 00:00:28]} Kh5 {[%clk
00:06:45]} {[%emt 00:00:18]} 61. Rb8 {[%clk 00:09:38]} {[%emt 00:00:44]} Ra2+
{[%clk 00:06:51]} {[%emt 00:00:23]} 62. Kh3 {[%clk 00:09:50]} {[%emt 00:00:19]}
Rf2 {[%clk 00:06:47]} {[%emt 00:00:32]} 63. Rf8 {[%clk 00:10:02]} {[%emt
00:00:19]} Kg6 {[%clk 00:06:08]} {[%emt 00:01:08]} 64. Kg4 {[%clk 00:10:22]}
{[%emt 00:00:13]} Rg2+ {[%clk 00:06:00]} {[%emt 00:00:37]} 65. Kh3 {[%clk
00:10:47]} {[%emt 00:00:06]} Ra2 {[%clk 00:04:52]} {[%emt 00:01:37]} 66. Kg4
{[%clk 00:10:34]} {[%emt 00:00:44]} Rh2 {[%clk 00:03:18]} {[%emt 00:02:00]} 67.
Rg8+ {[%clk 00:05:14]} {[%emt 00:05:54]} Kf6 {[%clk 00:03:38]} {[%emt
00:00:10]} 68. Rf8+ {[%clk 00:04:18]} {[%emt 00:01:27]} Ke7 {[%clk 00:02:48]}
{[%emt 00:01:18]} 69. Rf5 {[%clk 00:04:07]} {[%emt 00:00:43]} Rg2+ {[%clk
00:02:55]} {[%emt 00:00:22]} 70. Kh3 {[%clk 00:04:08]} {[%emt 00:00:30]} Rg3+
{[%clk 00:03:12]} {[%emt 00:00:13]} 71. Kh2 {[%clk 00:04:37]} {[%emt 00:00:01]}
Ke6 {[%clk 00:03:35]} {[%emt 00:00:06]} 72. Rf8 {[%clk 00:04:55]} {[%emt
00:00:13]} Kd5 {[%clk 00:03:18]} {[%emt 00:00:45]} 73. Rd8+ {[%clk 00:04:14]}
{[%emt 00:01:12]} Ke5 {[%clk 00:03:35]} {[%emt 00:00:12]} 74. Re8+ {[%clk
00:04:34]} {[%emt 00:00:11]} Kf4 {[%clk 00:03:47]} {[%emt 00:00:17]} 75. Rf8+
{[%clk 00:05:00]} {[%emt 00:00:06]} Ke3 {[%clk 00:04:05]} {[%emt 00:00:11]} 76.
Rf5 {[%clk 00:05:19]} {[%emt 00:00:11]} Kf2 {[%clk 00:04:03]} {[%emt 00:00:31]}
77. Rb5 {[%clk 00:04:41]} {[%emt 00:01:09]} Kxf3 {[%clk 00:04:03]} {[%emt
00:00:30]} 78. Rb3+ {[%clk 00:05:05]} {[%emt 00:00:06]} Kg4 {[%clk 00:04:25]}
{[%emt 00:00:06]} 79. Rb4+ {[%clk 00:04:02]} {[%emt 00:01:34]} Kh5 {[%clk
00:04:43]} {[%emt 00:00:10]} 80. Rb5 {[%clk 00:04:25]} {[%emt 00:00:09]} Re3
{[%clk 00:04:50]} {[%emt 00:00:21]} 81. Ra5 {[%clk 00:04:27]} {[%emt 00:00:30]}
Kg4 {[%clk 00:05:06]} {[%emt 00:00:13]} 82. Ra4+ {[%clk 00:04:53]} {[%emt
00:00:06]} Kf5 {[%clk 00:05:14]} {[%emt 00:00:20]} 83. Ra5+ {[%clk 00:05:08]}
{[%emt 00:00:15]} Kf4 {[%clk 00:05:40]} {[%emt 00:00:03]} 84. Ra4+ {[%clk
00:05:12]} {[%emt 00:00:27]} Re4 {[%clk 00:04:19]} {[%emt 00:01:50]} 85. Ra3
{[%clk 00:05:41]} {[%emt 00:00:01]} g4 {[%clk 00:04:29]} {[%emt 00:00:18]} 86.
Ra8 {[%clk 00:06:02]} {[%emt 00:00:11]} Re2+ {[%clk 00:04:24]} {[%emt
00:00:34]} 87. Kh1 {[%clk 00:06:03]} {[%emt 00:00:29]} h3 {[%clk 00:04:26]}
{[%emt 00:00:28]} 88. Rf8+ {[%clk 00:06:23]} {[%emt 00:00:11]} Kg3 {[%clk
00:04:36]} {[%emt 00:00:19]} 89. Rf1 {[%clk 00:06:38]} {[%emt 00:00:16]} Re4
{[%clk 00:04:53]} {[%emt 00:00:11]} 90. Ra1 {[%clk 00:06:52]} {[%emt 00:00:18]}
Kh4 {[%clk 00:04:42]} {[%emt 00:00:41]} 91. Ra8 {[%clk 00:07:12]} {[%emt
00:00:10]} Re1+ {[%clk 00:04:58]} {[%emt 00:00:13]} 0-1

[Event "NJSK 2023 Jeugd C"]
[Site "Almelo, Netherlands"]
[Date "2023.05.03"]
[Round "5.11"]
[White "Verwer, Oscar"]
[Black "Chua, Ethan"]
[Result "0-1"]
[TimeControl "90min/40moves + 30min + 30sec/move"]
[WhiteElo "1549"]
[BlackElo "1776"]

1. e4 {[%clk 01:30:58]} {[%emt 00:00:02]} c6 {[%clk 01:30:56]} {[%emt
00:00:04]} 2. Nc3 {[%clk 01:31:24]} {[%emt 00:00:04]} d5 {[%clk 01:31:21]}
{[%emt 00:00:05]} 3. Nf3 {[%clk 01:31:45]} {[%emt 00:00:08]} dxe4 {[%clk
01:31:47]} {[%emt 00:00:04]} 4. Nxe4 {[%clk 01:32:07]} {[%emt 00:00:08]} Nf6
{[%clk 01:32:12]} {[%emt 00:00:04]} 5. Qe2 {[%clk 01:32:11]} {[%emt 00:00:27]}
Nxe4 {[%clk 01:31:33]} {[%emt 00:01:09]} 6. Qxe4 {[%clk 01:32:34]} {[%emt
00:00:06]} Nd7 {[%clk 01:31:59]} {[%emt 00:00:04]} 7. d4 {[%clk 01:31:49]}
{[%emt 00:01:15]} Nf6 {[%clk 01:32:14]} {[%emt 00:00:15]} 8. Qe2 {[%clk
01:31:24]} {[%emt 00:00:55]} Bg4 {[%clk 01:32:35]} {[%emt 00:00:09]} 9. Be3
{[%clk 01:31:23]} {[%emt 00:00:31]} e6 {[%clk 01:31:35]} {[%emt 00:01:32]} 10.
g3 {[%clk 01:31:05]} {[%emt 00:00:47]} Qb6 {[%clk 01:30:41]} {[%emt 00:01:24]}
11. Bg2 {[%clk 01:29:43]} {[%emt 00:01:52]} c5 {[%clk 01:20:42]} {[%emt
00:10:28]} 12. Qd3 {[%clk 01:14:31]} {[%emt 00:15:42]} Rd8 {[%clk 01:05:20]}
{[%emt 00:15:53]} 13. c3 {[%clk 01:01:06]} {[%emt 00:13:56]} Bxf3 {[%clk
01:00:22]} {[%emt 00:05:27]} 14. Bxf3 {[%clk 01:00:23]} {[%emt 00:01:13]} cxd4
{[%clk 01:00:43]} {[%emt 00:00:10]} 15. Bxd4 {[%clk 00:51:56]} {[%emt
00:08:56]} Bc5 {[%clk 01:00:43]} {[%emt 00:00:30]} 16. O-O-O {[%clk 00:43:09]}
{[%emt 00:09:17]} O-O {[%clk 00:59:06]} {[%emt 00:02:06]} 17. Bxc5 {[%clk
00:36:27]} {[%emt 00:07:13]} Rxd3 {[%clk 00:57:43]} {[%emt 00:01:52]} 18. Bxb6
{[%clk 00:33:48]} {[%emt 00:03:10]} Rxf3 {[%clk 00:57:40]} {[%emt 00:00:33]} 19.
Bxa7 {[%clk 00:33:51]} {[%emt 00:00:27]} Nd5 {[%clk 00:50:26]} {[%emt
00:07:44]} 20. c4 {[%clk 00:19:26]} {[%emt 00:14:56]} Rc8 {[%clk 00:45:34]}
{[%emt 00:05:22]} 21. b3 {[%clk 00:15:43]} {[%emt 00:04:13]} b5 {[%clk
00:44:31]} {[%emt 00:01:33]} 22. Rd4 {[%clk 00:12:42]} {[%emt 00:03:31]} Rxf2
{[%clk 00:12:53]} {[%emt 00:32:08]} 23. Rd2 {[%clk 00:02:26]} {[%emt 00:10:47]}
Rxd2 {[%clk 00:12:46]} {[%emt 00:00:36]} 24. Kxd2 {[%clk 00:02:51]} {[%emt
00:00:05]} bxc4 {[%clk 00:13:12]} {[%emt 00:00:07]} 25. Rc1 {[%clk 00:03:02]}
{[%emt 00:00:16]} c3+ {[%clk 00:13:24]} {[%emt 00:00:19]} 26. Kd3 {[%clk
00:01:23]} {[%emt 00:02:09]} Nb4+ {[%clk 00:13:21]} {[%emt 00:00:33]} 27. Kd4
{[%clk 00:01:14]} {[%emt 00:00:39]} c2 {[%clk 00:12:53]} {[%emt 00:00:57]} 28.
Bc5 {[%clk 00:01:29]} {[%emt 00:00:15]} Rxc5 {[%clk 00:13:12]} {[%emt
00:00:10]} 29. Kxc5 {[%clk 00:01:35]} {[%emt 00:00:25]} Nd3+ {[%clk 00:13:37]}
{[%emt 00:00:05]} 30. Kc4 {[%clk 00:01:53]} {[%emt 00:00:12]} Nxc1 {[%clk
00:14:00]} {[%emt 00:00:07]} 31. Kc3 {[%clk 00:02:19]} {[%emt 00:00:04]} Nxa2+
{[%clk 00:14:23]} {[%emt 00:00:07]} 32. Kxc2 {[%clk 00:02:47]} {[%emt
00:00:03]} Nb4+ {[%clk 00:14:42]} {[%emt 00:00:10]} 33. Kc3 {[%clk 00:03:10]}
{[%emt 00:00:08]} Nd5+ {[%clk 00:15:07]} {[%emt 00:00:04]} 34. Kc4 {[%clk
00:03:34]} {[%emt 00:00:05]} f5 {[%clk 00:15:23]} {[%emt 00:00:14]} 35. b4
{[%clk 00:03:52]} {[%emt 00:00:13]} Kf7 {[%clk 00:15:45]} {[%emt 00:00:07]} 36.
b5 {[%clk 00:04:08]} {[%emt 00:00:14]} Kf6 {[%clk 00:16:09]} {[%emt 00:00:05]}
37. Kd4 {[%clk 00:04:19]} {[%emt 00:00:21]} g5 {[%clk 00:16:30]} {[%emt
00:00:09]} 38. h3 {[%clk 00:04:41]} {[%emt 00:00:07]} f4 {[%clk 00:16:37]}
{[%emt 00:00:23]} 39. gxf4 {[%clk 00:04:51]} {[%emt 00:00:21]} gxf4 {[%clk
00:17:02]} {[%emt 00:00:05]} 40. h4 {[%clk 00:04:55]} {[%emt 00:00:27]} Kf5
{[%emt 00:00:26]} 0-1

[Event "NJSK 2023 Jeugd C"]
[Site "Almelo, Netherlands"]
[Date "2023.05.03"]
[Round "5.12"]
[White "Wortman, Rawi"]
[Black "Thijssen, Freek"]
[Result "0-1"]
[TimeControl "90min/40moves + 30min + 30sec/move"]
[WhiteElo "1668"]
[BlackElo "1644"]

1. e4 {[%clk 01:30:59]} {[%emt 00:00:01]} e5 {[%clk 01:30:56]} {[%emt
00:00:04]} 2. Nf3 {[%clk 01:31:27]} {[%emt 00:00:03]} Nc6 {[%clk 01:31:20]}
{[%emt 00:00:05]} 3. Bc4 {[%clk 01:31:55]} {[%emt 00:00:02]} Bc5 {[%clk
01:31:39]} {[%emt 00:00:11]} 4. c3 {[%clk 01:32:22]} {[%emt 00:00:04]} Nf6
{[%clk 01:32:02]} {[%emt 00:00:07]} 5. d4 {[%clk 01:32:48]} {[%emt 00:00:04]}
exd4 {[%clk 01:32:26]} {[%emt 00:00:06]} 6. e5 {[%clk 01:33:15]} {[%emt
00:00:03]} d5 {[%clk 01:32:50]} {[%emt 00:00:06]} 7. Bb5 {[%clk 01:33:39]}
{[%emt 00:00:06]} Ne4 {[%clk 01:33:04]} {[%emt 00:00:15]} 8. cxd4 {[%clk
01:34:02]} {[%emt 00:00:07]} Bb6 {[%clk 01:33:26]} {[%emt 00:00:07]} 9. O-O
{[%clk 01:33:43]} {[%emt 00:00:52]} Bg4 {[%clk 01:29:25]} {[%emt 00:04:30]} 10.
Be3 {[%clk 01:30:46]} {[%emt 00:03:27]} O-O {[%clk 01:27:41]} {[%emt 00:02:13]}
11. Bxc6 {[%clk 01:30:15]} {[%emt 00:01:01]} bxc6 {[%clk 01:26:47]} {[%emt
00:01:24]} 12. Nc3 {[%clk 01:26:31]} {[%emt 00:04:14]} f6 {[%clk 01:13:46]}
{[%emt 00:13:30]} 13. Bf4 {[%clk 01:07:51]} {[%emt 00:19:10]} fxe5 {[%clk
01:04:41]} {[%emt 00:09:36]} 14. Bxe5 {[%clk 01:08:07]} {[%emt 00:00:14]} Ng5
{[%clk 01:03:53]} {[%emt 00:01:18]} 15. Nxg5 {[%clk 00:55:48]} {[%emt
00:12:49]} Bxd1 {[%clk 01:03:44]} {[%emt 00:00:38]} 16. Ne6 {[%clk 00:56:14]}
{[%emt 00:00:04]} Qe7 {[%clk 01:01:27]} {[%emt 00:02:45]} 17. Nxf8 {[%clk
00:56:10]} {[%emt 00:00:36]} Bh5 {[%clk 01:01:22]} {[%emt 00:00:35]} 18. Nxh7
{[%clk 00:55:32]} {[%emt 00:01:09]} Kxh7 {[%clk 01:01:14]} {[%emt 00:00:38]} 19.
Rfe1 {[%clk 00:54:51]} {[%emt 00:01:11]} Re8 {[%clk 01:01:04]} {[%emt
00:00:39]} 20. Re3 {[%clk 00:54:45]} {[%emt 00:00:36]} Bg6 {[%clk 00:51:05]}
{[%emt 00:10:25]} 21. Rh3+ {[%clk 00:47:41]} {[%emt 00:07:39]} Kg8 {[%clk
00:51:24]} {[%emt 00:00:11]} 22. Rg3 {[%clk 00:47:08]} {[%emt 00:01:03]} Bxd4
{[%clk 00:50:17]} {[%emt 00:01:38]} 0-1